Cogmind - Beta 9.6 @@@ ROGUE MODE // 2020.05.06 @ 03:10:53 Player: cptwinky Result: Destroyed by D-53 Grenadier with Mini Grenade Launcher Performance ------------- Evolutions (1) 500 Regions Visited (4) 800 Robots Destroyed (50) 250 Value Destroyed (1188) 1188 Prototype IDs (2) 40 Alien Tech Used (0) 0 Bonus (16) 16 TOTAL SCORE: 2794 Bonus ------- High Alert Combat Kills 16 Cogmind --------- Core Integrity 0/400 Matter 300/300 Energy 100/100 System Corruption 2% Temperature Cool (0) Movement Core (850) Ox16 Location -9/Mines Parts ------- > --- POWER (1) -------- (None) > --- PROPULSION (2) --- (None) > --- UTILITY (4) ------ Medium Storage Unit High-capacity Storage Unit Hardened Light Armor Plating > --- WEAPON (2) ------- Heavy Hammer Mining Claw > --- INVENTORY (16) --- Compact Wheel Medium Battery (200) High-capacity Matter Pod (200) Armor Integrity Analyzer Medium Armor Plating EMP Blaster Rocket Launcher Datajack Plasma Cutter Mining Claw Mining Claw Peak State ------------ > --- POWER ------------ Heavy Ion Engine > --- PROPULSION ------- Light Treads Wheel > --- UTILITY ---------- Improved Heat Sink Medium Storage Unit Medium Storage Unit Medium Armor Plating > --- WEAPON ----------- Particle Gun Improved Medium Laser > --- INVENTORY -------- Compact Wheel Medium Battery High-capacity Matter Pod Armor Integrity Analyzer Heavy EM Pulse Gun Assault Rifle EMP Blaster Rocket Launcher Datajack Mining Claw Mining Claw Mining Claw [Rating: 18] Favorites ----------- Power Ion Engine Engine Ion Engine Propulsion Light Treads Treads Light Treads Wheel Wheel Utility Medium Storage Unit Device Improved Heat Sink Storage Medium Storage Unit Processor Visual Processing Unit Protection Medium Armor Plating Weapon Light Assault Rifle Energy Gun Backup Laser I Ballistic Gun Light Assault Rifle Launcher Rocket Launcher Impact Weapon Heavy Hammer Slashing Weapon Mining Claw Build | -11 -10 -10 -9 -9 ------- Run | Scr Mat Min Mat Min Slots Evolved 2 | . . . 2 . Power . | . . . . . Propulsion . | . . . . . Utility 2 | . . . 2 . Weapon . | . . . . . Parts Attached 53 | 7 22 2 10 12 Power 3 | 1 1 . 1 . Engine 3 | 1 1 . 1 . Core . | . . . . . Reactor . | . . . . . Propulsion 17 | 2 9 2 1 3 Treads 14 | 1 9 2 . 2 Leg . | . . . . . Wheel 3 | 1 . . 1 1 Hover . | . . . . . Flight . | . . . . . Utility 12 | 2 2 . 5 3 Device 1 | . . . 1 . Storage 5 | 2 2 . 1 . Processor 1 | . . . 1 . Hackware . | . . . . . Protection 5 | . . . 2 3 Artifact . | . . . . . Weapon 21 | 2 10 . 3 6 Energy Gun 9 | . 5 . 2 2 Energy Cannon . | . . . . . Ballistic Gun 9 | 2 5 . . 2 Ballistic Cannon . | . . . . . Launcher 1 | . . . 1 . Special Weapon . | . . . . . Impact Weapon 1 | . . . . 1 Slashing Weapon 1 | . . . . 1 Piercing Weapon . | . . . . . Special Melee Weapon . | . . . . . Unidentified Prototypes 2 | . . . 2 . Parts Lost 18 | . 3 1 . 14 Power 2 | . 1 . . 1 Propulsion 7 | . 1 1 . 5 Utility 4 | . . . . 4 Weapon 5 | . 1 . . 4 Highest Loss Streak 6 | . 1 1 . 6 Average Slot Usage (%) 97 | . 98 100 98 92 Engine 12 | . 13 14 11 11 Treads 21 | . 25 28 12 13 Wheel 3 | . 2 . 9 4 Device 3 | . . . 10 8 Storage 25 | . 28 28 22 22 Protection 3 | . . . 9 11 Energy Gun 14 | . 18 14 18 5 Ballistic Gun 8 | . 9 14 1 6 Impact Weapon 1 | . . . . 5 Naked Turns . | . . . . . Heaviest Build 63 | 13 24 24 63 63 Greatest Support 40 | 10 40 40 40 40 Greatest Overweight (x) 18 | 1 7 . 6 18 Average Overweight (x) 1 | . . . 2 3 Largest Inventory Capacity 16 | 8 12 12 16 16 Average Capacity 12 | 5 11 12 12 16 Most Carried 15 | 4 12 12 12 15 Average Carried 11 | 3 10 11 11 13 Final Capacity 16 | 8 12 12 16 16 Final Carried 12 | 4 11 12 12 11 Class Distribution -------------------- 100% | Mutant Dominant Class ---------------- Mutant | -10/Materials Mutant | -10/Mines Mutant | -9/Materials Mutant | -9/Mines Resources | -11 -10 -10 -9 -9 ----------- Run | Scr Mat Min Mat Min Matter Collected 1060 | 286 468 27 89 190 Remotely . | . . . . . Salvage Created 1734 | 62 837 235 228 372 Parts 99 | 2 60 14 13 10 Haulers Intercepted 2 | . 1 . 1 . Recyclers Shooed 2 | . . . . 2 Parts Field Recycled . | . . . . . Retrieved Matter . | . . . . . Parts Self-Destructed . | . . . . . Prevented . | . . . . . Kills | -11 -10 -10 -9 -9 ------- Run | Scr Mat Min Mat Min Combat Hostiles Destroyed 40 | . 25 4 6 5 Melee 1 | . . . . 1 Guns 33 | . 24 4 4 1 AOE 3 | . 1 . 2 . Classes Destroyed 9 | 1 4 1 1 2 Worker 1 | . . . . 1 Builder 1 | . . . 1 . Tunneler 2 | . . 2 . . Hauler 2 | . 1 . 1 . Recycler 3 | 1 . . . 2 Operator 1 | . 1 . . . Swarmer 12 | . 8 . 2 2 Grunt 26 | . 17 4 4 1 Sentry 2 | . . . . 2 Best Kill Streak 7 | 1 7 3 3 4 Combat Bots Only 7 | . 7 2 3 3 Max Kills in Single Turn 2 | 1 1 2 2 1 Gunslinging . | . . . . . Exploded 1 | . 1 . 1 . Melee 1 | . . . . 1 Uniques/NPCs Destroyed . | . . . . . Combat | -11 -10 -10 -9 -9 -------- Run | Scr Mat Min Mat Min Damage Taken 2701 | . 671 115 140 1775 Core 593 | . 174 14 . 405 Absorbed by Shields . | . . . . . Core Remaining (%) 62 | 100 . 24 . . Volleys Fired 148 | 8 79 11 16 34 Largest 2 | 2 2 2 2 2 Hottest 121 | 40 70 70 121 121 Shots Fired 260 | 16 152 22 30 40 Gun 258 | 16 152 22 28 40 Cannon . | . . . . . Launcher 2 | . . . 2 . Special . | . . . . . Kinetic 131 | 16 74 11 . 30 Thermal 123 | . 74 11 28 10 Explosive 2 | . . . 2 . Electromagnetic 4 | . 4 . . . Robot Hit Streak 37 | 4 20 11 10 37 Robot Miss Streak 4 | 2 4 1 2 1 Penetration Max . | . . . . . Secondary Targets 3 | . 2 1 . . Max Gunslinging Chain 1 | . 1 1 . . Shots Hit Robots 199 | 10 99 18 21 51 Core Hits 83 | 3 50 13 9 8 Critical Hits 3 | . 2 . . 1 Critical Kills 2 | . 1 . . 1 Critical Parts Destroyed 1 | . 1 . . . Melee Attacks 20 | . . . . 20 Impact 20 | . . . . 20 Slashing . | . . . . . Piercing . | . . . . . Sneak Attacks 1 | . . . . 1 Combat Hostiles . | . . . . . Follow-up Attacks . | . . . . . Damage Inflicted 2968 | 95 1232 213 524 904 Guns 2073 | 95 942 213 311 512 Cannons . | . . . . . Explosions 503 | . 290 . 213 . Melee 392 | . . . . 392 Ramming . | . . . . . Kinetic 1067 | 95 543 88 . 341 Thermal 1296 | . 689 125 311 171 Explosive 213 | . . . 213 . Electromagnetic . | . . . . . Impact 392 | . . . . 392 Slashing . | . . . . . Piercing . | . . . . . Highest Corruption 2 | . . . 2 2 Average Corruption 1 | . . . 1 2 Corruption Purged . | . . . . . Effects 15 | . . . 6 9 Message Errors 5 | . . . 2 3 Heat Flow Errors 2 | . . . 2 . Energy Discharges 3 | . . . . 3 Data Loss (minor) 4 | . . . 2 2 Targeting Errors 1 | . . . . 1 Overload Shots . | . . . . . Overflow Damage 166 | . 98 . . 68 Projectiles . | . . . . . Explosions 98 | . 98 . . . Melee 68 | . . . . 68 Knockbacks . | . . . . . Impact . | . . . . . Kinetic . | . . . . . Secondary . | . . . . . Self-Inflicted Damage . | . . . . . Shots . | . . . . . Rammed . | . . . . . Targets Rammed . | . . . . . Kicked . | . . . . . Crushed . | . . . . . Highest Temperature 220 | . 36 126 220 129 Average Temperature 40 | . 8 53 65 71 Received Heat Transfer 795 | . 294 66 66 369 Siege Activations . | . . . . . Robots Corrupted . | . . . . . Combat Hostiles . | . . . . . Parts Fried 2 | . . . . 2 Impact Corruptions 6 | . . . . 6 Robots Melted 1 | . . . . 1 Combat Hostiles 1 | . . . . 1 Parts Melted 6 | . 3 1 1 1 Heat Transferred 2990 | . 1584 370 666 370 Parts Sabotaged . | . . . . . Parts Stolen . | . . . . . Parts Stripped . | . . . . . Power Chain Reactions . | . . . . . Missiles Intercepted . | . . . . . Alert | -11 -10 -10 -9 -9 ------- Run | Scr Mat Min Mat Min Peak Influence 462 | 5 462 248 235 55 Average Influence 155 | . 294 122 116 10 Maximum Alert Level 2 | . 2 1 1 . Low Security (%) 65 | 100 16 89 90 100 Level 1 29 | . 70 10 9 . Level 2 4 | . 12 . . . Level 3 . | . . . . . Level 4 . | . . . . . Level 5 . | . . . . . High Security . | . . . . . Max Security . | . . . . . Squads Dispatched 8 | . 7 . 1 . Investigation 5 | . 4 . 1 . Extermination . | . . . . . Reinforcement 3 | . 3 . . . Assault . | . . . . . Garrison . | . . . . . Intercept . | . . . . . Construction Impeded . | . . . . . Haulers Reinforced . | . . . . . Stealth | -11 -10 -10 -9 -9 --------- Run | Scr Mat Min Mat Min Distress Signals 3 | . 2 1 . . Communications Jammed . | . . . . . Distress Signals . | . . . . . Times Spotted 74 | . 49 4 7 14 Peak Tracking Total 7 | . 7 2 3 5 Tactical Retreats 9 | . 6 . 1 2 Traps | -11 -10 -10 -9 -9 ------- Run | Scr Mat Min Mat Min Traps Triggered 8 | . 6 . 2 . Indirectly . | . . . . . Trap Hack Attempts . | . . . . . Triggered . | . . . . . Disarmed . | . . . . . Reprogrammed . | . . . . . Reused . | . . . . . Traps Extracted . | . . . . . Installed . | . . . . . Triggered . | . . . . . Machines | -11 -10 -10 -9 -9 ---------- Run | Scr Mat Min Mat Min Machines Disabled 1 | . 1 . . . Max in Single Turn 1 | . 1 . . . Machines Sabotaged . | . . . . . Garrisons Compromised . | . . . . . Overloaded Fab Kills . | . . . . . Fab Network Shutdowns . | . . . . . Hacking | -11 -10 -10 -9 -9 --------- Run | Scr Mat Min Mat Min Machines Accessed 11 | . 7 . 3 1 Terminals 6 | . 4 . 1 1 Fabricators . | . . . . . Repair Stations 2 | . 1 . 1 . Recycling Units 3 | . 2 . 1 . Scanalyzers . | . . . . . Garrison Access . | . . . . . Total Hacks 29 | . 16 . 9 4 Successful 16 | . 7 . 7 2 Failed 13 | . 9 . 2 2 Catastrophic 1 | . 1 . . . Database Lockouts . | . . . . . Manual 14 | . 8 . 2 4 Terminals 19 | . 11 . 4 4 Fabricators . | . . . . . Repair Stations 4 | . 1 . 3 . Recycling Units 6 | . 4 . 2 . Scanalyzers . | . . . . . Garrison Access . | . . . . . Terminal Hacks 8 | . 4 . 3 1 Part Schematic 1 | . 1 . . . Robot Analysis 3 | . 2 . 1 . Unreport Threat 3 | . . . 2 1 Zone Layout 1 | . 1 . . . Fabricator Hacks . | . . . . . Repair Station Hacks 3 | . 1 . 2 . Scan Component 1 | . . . 1 . Repair 1 | . . . 1 . Refit 1 | . 1 . . . Recycling Unit Hacks 2 | . 1 . 1 . Retrieve Components 2 | . 1 . 1 . Scanalyzer . | . . . . . Garrison Access Hacks . | . . . . . Unauthorized Hacks 3 | . 1 . 1 1 Terminals 1 | . . . . 1 Track 1 | . . . . 1 Fabricators . | . . . . . Repair Stations . | . . . . . Recycling Units 2 | . 1 . 1 . Tunnel 2 | . 1 . 1 . Scanalyzers . | . . . . . Garrison Access . | . . . . . Data Cores Recovered . | . . . . . Used . | . . . . . Hacking Detections 7 | . 6 . 1 . Full Trace Events 3 | . 3 . . . Feedback Events . | . . . . . Feedback Blocked . | . . . . . Robot Schematics Acquired . | . . . . . Robots Built . | . . . . . Matter . | . . . . . Time . | . . . . . Total Robot Build Rating . | . . . . . Part Schematics Acquired 1 | . 1 . . . Parts Built . | . . . . . Matter . | . . . . . Time . | . . . . . Total Part Build Rating . | . . . . . Parts Repaired 1 | . . . 1 . Time 32 | . . . 32 . Parts Recycled . | . . . . . Recycled Matter . | . . . . . Retrieved Matter . | . . . . . Retrieved Components 6 | . 3 . 3 . Parts Scanalyzed . | . . . . . Part Schematics Acquired . | . . . . . Parts Damaged . | . . . . . Bothacking | -11 -10 -10 -9 -9 ------------ Run | Scr Mat Min Mat Min Used RIF Installer . | . . . . . Robots Hacked . | . . . . . Non-combat . | . . . . . Combat . | . . . . . Robot Hacks Applied . | . . . . . Relay Couplers Released . | . . . . . Robots Rewired . | . . . . . Allies Hacked . | . . . . . Hacks Repelled . | . . . . . Allies | -11 -10 -10 -9 -9 -------- Run | Scr Mat Min Mat Min Total Allies . | . . . . . Largest Group . | . . . . . Highest-Rated Group . | . . . . . Highest-Rated Ally . | . . . . . Total Orders . | . . . . . Ally Attacks . | . . . . . Total Damage . | . . . . . Kills . | . . . . . Allies Corrupted . | . . . . . Allies Melted . | . . . . . Intel | -11 -10 -10 -9 -9 ------- Run | Scr Mat Min Mat Min Robot Analysis Total 3 | . 2 . 1 . Derelict Logs Recovered 3 | . . 2 . 1 Drone Launches . | . . . . . Drone Recoveries . | . . . . . Exploration | -11 -10 -10 -9 -9 ------------- Run | Scr Mat Min Mat Min Turns Passed 2767 | 81 1007 694 352 633 Spaces Moved 1353 | 56 458 397 193 249 Core 7 | 3 2 . . 2 Treads 920 | . 382 397 26 115 Legs . | . . . . . Wheels 426 | 53 74 . 167 132 Hover . | . . . . . Flight . | . . . . . Fastest Speed 50 | 50 90 160 110 130 Average Speed 148 | 80 150 160 118 167 Slowest Speed 950 | 90 400 160 160 950 Overloaded Moves . | . . . . . Propulsion Burnouts . | . . . . . Robots Hopped . | . . . . . Cave-ins Triggered . | . . . . . Exploration Rate (%) 48 | 5 80 77 32 48 Regions Visited 4 Branch Regions 2 Pre-discovered Areas 2 | . 1 . 1 . Known Exits Taken 2 | . . 1 1 . Unknown Exits Taken 2 | 1 1 . . . Scrap Searched 2 | . . 1 . 1 Spaces Dug . | . . . . . Terrain Destroyed 33 | . 17 . 16 . Melee . | . . . . . Projectile . | . . . . . AOE 33 | . 17 . 16 . Actions | -11 -10 -10 -9 -9 --------- Run | Scr Mat Min Mat Min Total 1817 | 75 635 437 286 384 Wait 195 | 1 54 22 57 61 Move 1349 | 55 457 396 192 249 Hop . | . . . . . Pick Up 29 | 4 11 4 4 6 Fast Attach 27 | 7 11 . 5 4 Attach 12 | . 3 1 1 7 Detach 5 | . 3 . 1 1 Swap 14 | . 8 1 4 1 Drop 18 | . 9 2 6 1 Fire 148 | 8 79 11 16 34 Melee 20 | . . . . 20 Ram . | . . . . . Kick . | . . . . . Crush . | . . . . . Escape Stasis . | . . . . . Rewire . | . . . . . Trap . | . . . . . Miscellaneous . | . . . . . Route ------- -11/Scrapyard -10/Materials (discovered 5 exits: *Mat x3 / [*Min x2]) -10/Mines -9/Materials -9/Mines History --------- Turn | Location | Event 14 | -11/Scrapyard | Discovered new exit (range 14) 82 | -11/Scrapyard | Entered Materials 95 | -10/Materials | Discovered new exit (range 16) 276 | -10/Materials | Destroyed 7 combat bots 301 | -10/Materials | Build established: Mutant 467 | -10/Materials | Discovered new exit (range 3) 673 | -10/Materials | Core integrity fell below 50% 702 | -10/Materials | Discovered new exit (range 7) 973 | -10/Materials | Discovered new exit (range 9) 1065 | -10/Materials | Discovered new exit (range 16) 1089 | -10/Materials | Entered Mines 1143 | -10/Mines | Learned location of 1 exit from Materials 1196 | -10/Mines | Identified exit to Materials 1618 | -10/Mines | Received a Rocket Launcher from a helpful Derelict 1783 | -10/Mines | Entered Materials 1783 | -9/Materials | Evolved 2 slots: Utility x2 1784 | -9/Materials | Identified exit to Mines 1933 | -9/Materials | Repaired Med. Armor Plating 2135 | -9/Materials | Entered Mines 2402 | -9/Mines | Lost 6 parts (3n1u2w) 2684 | -9/Mines | Learned 4 Materials zone layouts 2695 | -9/Mines | Lost 3 parts (2u1w) 2716 | -9/Mines | Assembled infested the area 2739 | -9/Mines | Core integrity fell below 50% 2746 | -9/Mines | Met 8R-AWN 2763 | -9/Mines | Core integrity fell below 20% 2768 | -9/Mines | Destroyed by D-53 Grenadier with Mini Grenade Launcher Last Messages --------------- 02758_ T-07 Excavator destroyed. 02760_ HV Slug penetrates Wall. 02761_ The unstable cave ceiling collapses. 02762_ HV Slug penetrates D-53 Grenadier. 02762_ HV Slug penetrates Wall. 02762_ HV Slug penetrates D-53 Grenadier. 02762_ HV Slug penetrates Wall. 02764_ The unstable cave ceiling collapses. 02764_ HV Slug penetrates D-53 Grenadier. 02764_ D-53 Grenadier suffers critical hit. 02764_ HV Slug penetrates Wall. 02764_ HV Slug penetrates Earth. 02765_ The unstable cave ceiling collapses. 8R-AWN: I can't promise they won't dissect you, by the way. They're weird like that. Either way, I'm sure they'll be happy to try putting you back together again. 02766_ Hvy. Ion Engine destroyed. 02768_ HV Slug penetrates Wall. 02768_ HV Slug penetrates D-53 Grenadier. Map ----- +----------------------------------------------------+ | ?????????????# #???????????????????????????????? | | ?????????????# #???????????????????????????????? | | ????????????## ##??????????????????????????????? | | ???????????## #??????????????????????????????? | | ????????#### #??????????????????????????????? | | ??????### ##??????????????????????????????? | | ?????## ##???????????????????????????????? | | ????## ##????????????????????????????????? | | ???## #?????????????????????????????????? | | #### #?????????????????????????????????? | | #?????????????????????????????????? | | ##########?????????????????????????? | | ### ### ????????????????????????? | | ??## ### ????????????????????????? | | ???### %###T """ """?????????????????????????? | | ?????## ##%#??# """ """ ????????????????????????? | | ??????#####%#### """ """ """?????????????????????? | | ??????????#%% k #?????####??????????? | | ??????????##### #########???????? a%"??????????? | | ????????????### t#??????????????# aa????????????? | | ????????????# r ############## # a#?????????????? | | ????????????# # ##????????????? | | ????????????# ###### ##???????????? | | ????????????# ?????# #???????????? | | ????????????# ?????# g #???????????? | | ????????????## ?????# @ #???????????? | | ?????????????# ?????# #???????????? | | ?????????????# ?????# ##???????????? | | ????????????? ?????# ##????????????? | | ????????????? ?????# # =%! ###?????????????? | | ????????????? ?????## ####???????????????? | | ????????????? ????## d #??????????????????? | | ????????????? ????# gd ##??????????????????? | | ????????????? ????# g #??????????????????? | | ??????????????? "%" #??????????????????? | | ??????????????## $ ; ### ##??????????????????? | | ???????????????# #;;;; ??#;###???????????????????? | | ???????????????# ?#####?? ##?????????????????????? | | ??????????????? ?????????#???????????????????????? | | ?????????????? ??????????????????????????????????? | | ????????????? ???????????????????????????????????? | | ?????????????#???????????????????????????????????? | | ?????????????????????????????????????????????????? | | ?????????????????????????????????????????????????? | | ?????????????????????????????????????????????????? | | ?????????????????????????????????????????????????? | | ?????????????????????????????????????????????????? | | ?????????????????????????????????????????????????? | | ?????????????????????????????????????????????????? | | ?????????????????????????????????????????????????? | +----------------------------------------------------+ Best States ------------- Heat Dissipation 42 Energy Generation 14 Energy Capacity 280 Matter Stores 300 Matter Capacity 300 Sight Range 18 Terrain Scan Density 10 Armor Coverage 225 Evasion (%) 44 Recoil Reduction 2 Item Schematics ----------------- Hcp. Storage Unit | -10/Materials | Hacked Robot Schematics ------------------ None Fabricated ------------ Nothing Alien Tech Used ----------------- None Achievements -------------- None Challenges ------------ None Game ------ Seed DamperGravitonStabilizer Manual? 0 Play Time 00:17:06 Cumulative 513.7 hours Start 2020.05.06 @ 02:56:52 End 2020.05.06 @ 03:10:53 Sessions 1 Manual Loads 0 Difficulty Rogue Special Mode None Game No. 396 Rogue 392 Adventurer 4 Explorer 0 Win Type - Total 58 Types 50/3/1/2/2/0/0 Lore% 94 Gallery% 96 Achievement% 96 Wizard Run 0 Options --------- ASCII 0 Keyboard 0 Movement Vi Keybinds 0 Fullscreen 0 Font 16/Terminus Map View 76x50 Tactical HUD 1 Map Filters NONE Filters NONE Steam 1 RUN: 2501c0ad-960e-4f22-91eb-5fdf414dc4aa